{"text_format":"3","workbook":"xlsx","n_sheets":14,"sheets":["Index","00-Instructions","01-Submission Guidelines","02-Gatekeepers","03-Questionnaire","04-Technical Schedules","Scoring","Lists","05-Offered Cells","Module Sizes","06-Temp Derating Factors","07-Track Record","08-Customer Details","09-Overall Deviation List"],"not_rendered":{"images":2,"external_links":1,"defined_names":11},"read":"whole","date_system":"1900"}

{"sheet":"Index","index":0,"n_rows":18,"n_cols":3,"rows_kept":18,"merged":[[0,0,0,2],[1,0,1,1],[2,0,2,1],[3,0,3,2],[4,0,4,2],[5,0,5,2]]}
["LITHIUM IRON PHOSPHATE BATTERIES DISTRIBUTION NATIONAL CONTRACT"]
["Tenderer Name:"]
["Referenced Standard:",null,"240-170000103, Rev 1, Lithium Iron Phosphate Batteries Standard"]
[{"$f":"\"Document Reference #: \"&LEFT(C3,SEARCH(\",\",C3)-1)&\"_1\"","v":"Document Reference #: 240-170000103_1"}]
[{"$f":"\"Document Title: Technical Schedule A&B for \"&C3","v":"Document Title: Technical Schedule A&B for 240-170000103, Rev 1, Lithium Iron Phosphate Batteries Standard"}]
["Revision 1"]
[]
["#","Worksheet Tab Title","Description / Instructions"]
[1,"00-Instructions","Technical Schedules completion instructions."]
[2,"01-Submission Guidelines","Guidelines to aid in the tender evaluation process for both tenderer and Technical Evaluation Team. It is strongly encouraged for tenderers to comply with the set of guidelines."]
[3,"02 - Gatekeepers","Mandatory requirements as per 240-95240645, Technical Evaluation Criteria for Standby Batteries"]
[4,"03-Questionnaire","Tenderer and Original Equipment Manufacturer information"]
[5,"04-Technical Schedules","Technical requirements"]
[6,"05-Offered Cells","Information of the offered equipment"]
[7,"06-Temp Derating Factors","Temperature derating factors of the rated capacity"]
[9,"07-Track Record","Track record of the offered equipment"]
[11,"08-Customer Details","Information of the customers that use the offered equipment"]
[12,"09-Overall Deviation List","List any deviations taken."]

{"sheet":"00-Instructions","index":1,"n_rows":19,"n_cols":2,"rows_kept":19,"merged":[[0,0,0,1],[1,0,1,1],[2,0,2,1],[3,0,3,1],[4,0,4,1],[5,0,5,1],[7,0,7,1],[9,0,10,0]]}
[{"$f":"Index!A1","v":"LITHIUM IRON PHOSPHATE BATTERIES DISTRIBUTION NATIONAL CONTRACT"}]
["Click here to go back to \"Worksheets Index\""]
[{"$f":"Index!A4","v":"Document Reference #: 240-170000103_1"}]
[{"$f":"Index!A5","v":"Document Title: Technical Schedule A&B for 240-170000103, Rev 1, Lithium Iron Phosphate Batteries Standard"}]
[{"$f":"Index!A6","v":"Revision 1"}]
[]
["#","INSTRUCTIONS"]
["A - EVALUATION CRITERIA"]
[1,"The Tenderer shall respond to ALL clauses as stated on the Technical Schedules Worksheet/s. \nComplete all Light Green shaded areas with the relevant requested information. Where the colour shading is not shown, complete the accessible cells."]
[2,{"$f":"\"Note that the requirements stated in Technical Schedules are not necessarily verbatim clause/s as per \"&Index!C3&\".\"","v":"Note that the requirements stated in Technical Schedules are not necessarily verbatim clause/s as per 240-170000103, Rev 1, Lithium Iron Phosphate Batteries Standard."}]
[null,{"$f":"\"Therefore it is OBLIGATORY on the Tenderer to review the applicable clauses in \"&Index!C3&\", in order to provide an informed response.\"","v":"Therefore it is OBLIGATORY on the Tenderer to review the applicable clauses in 240-170000103, Rev 1, Lithium Iron Phosphate Batteries Standard, in order to provide an informed response."}]
[3,"It is encumbent of the Tenderer to make sure that each clause is understood fully and an appropriate response provided.\nClause-for-clause compliance confirmation is not required, however there are instances where information need to be provided by the Tenderer.\nThe Tenderer shall further indicate the number of Devations taken.\nThe Tenderer shall list the Deviations taken on the document specific deviation worksheet or if not available, use Overall Deviation List Worksheet. Reasons for deviations as well as alternatives shall be clearly stated. The applicable document reference number and title shall be stated with the exact clause and deviation stated."]
[4,"When completing the Schedule B and Reference Section, the Tenderer is requested to take cognisance of the following:\nIt is expected of the Tenderer to state clearly, for each clause that requires a statement of compliance in the Schedule B, with one of the following options:\na) Comply - Confirmation of FULL compliance to all clauses of the applicable Section of the Technical Standard. NO deviations.\nb) Partially Comply - Confirmation of PARTIAL Compliance and that FULL Compliance is not possible. Deviations taken. Non-compliances also possible.\nc) Do Not Comply - Confirmation of Non-compliance to ALL requirements in Section.\nA drop down list with these options is provided in Schedule B for this purpose. ALL dropdowns shall show a selection, where applicable."]
[5,"Where supporting documentation is requested e.g. “with Reference”, the Tenderer shall provide a hyperlink to the supporting documentation in the “Reference / Statement (Supporting Evidence)” column. If the supporting evidence relates to a paragraph, graph, table or subset of a document, then the exact location in the relevant document shall be indicated e.g. Chapter, page number and the applicable section framed with a red border. Internet links are not acceptable."]
[6,"Where supporting documentation is NOT requested, the Tenderer shall state the level of compliance which shall serve as a confirmation of intended compliance at a later stage (post contract award) of the project."]
[7,"All graphs and tables shall be properly labelled and associated with a detailed explanation of how it relates to the requirement."]
[8,"All documents (incl. offers and site-specific documents) must be text searchable. If such documents are signed/scanned or made not searchable for any reason, a searchable version must also be included."]
[9,"Test certificates issued by an accredited, 3rd party, accredited test laboratory is acceptable as a minimum. "]
[10,"In instances where the offered equipment / solution deviates from the required standard/design, the Tenderer shall take deviations and complete the Overall Deviation List  indicating clearly the proposed deviation from the requirement and the implications (pros and cons). A comparison table shall be provided clearly indicating the differences of test outcomes, conducted tests, features, capabilities, etc. compared to the items of the required standard."]

{"sheet":"01-Submission Guidelines","index":2,"n_rows":16,"n_cols":5,"rows_kept":16,"merged":[[0,0,0,4],[1,0,1,4],[2,0,2,4],[3,1,3,4],[4,1,4,4],[5,1,5,4],[6,1,6,4],[7,1,7,4],[8,1,8,4],[9,1,9,4],[10,1,10,4],[11,1,11,4],[12,1,12,4]]}
[{"$f":"Index!A1","v":"LITHIUM IRON PHOSPHATE BATTERIES DISTRIBUTION NATIONAL CONTRACT"}]
["Click here to go back to \"Worksheets Index\""]
["Submission Guidelines"]
[1," Answers shall be concise and sufficiently detailed to give the Technical Evaluation Team (TET) a clear understanding of the answer. Unclear and insufficiently detailed answers could result in items being ambiguous and misinterpreted and could result in an unfavourable score."]
[2," Arrange the folders and subfolders into a well organised and structured hierarchy making them logical and sensible to navigate."]
[3,"Name the files that constitute the electronic returnables appropriately based on the content of the document or file."]
[4,"Have returnable digital PDF documents searchable as far as possible. This is preferred to scanned documents that cannot be searched."]
[5,"Have returnable digital PDF documents and include a table of contents as far as possible."]
[6,"The supporting documents may be Datasheets, Technical Drawings, Brochures, Technical Manuals, Type Test Certificates, Test reports, video clips, etc. "]
[7,"The Technical Schedules excel documents must be provided in duplicate with the name of the duplicate being, the filename with the words, “- Copy” appended. (In Windows a copy and paste into the same directory will automatically create this duplicate file with the correct name)."]
[8,"The supporting evidence shall be filed under the appropriate folders as per the folder structure. If an obvious folder is not available, then the document shall be filed under the Other folder."]
[9,"Submit technical drawings and photos of sample Battery Stands, Battery Cabinets and Battery Connectors under the Offered Equipment folder to demonstrate capability to comply with the requirements and level of offered quality."]
[10,"Example of how a deviation shall be recorded."]
["Item #","Document Reference #","Document Title","Clause #","Proposed Deviation"]
[1,"240-139687256","BATTERY ENERGY STORAGE SYSTEMS FOR GRID-SCALE APPLICATIONS","3.2.2 a)","The BESS comprise of an assembly of separate cabinets which are integrated at site."]
[2,"240-139687256","BATTERY ENERGY STORAGE SYSTEMS FOR GRID-SCALE APPLICATIONS","3.10.1","The performance as required by UL 1765, BESS Test Procedure, Section 2.1, clause 2.1 a) is not achievable. The offered system complies with …."]

{"sheet":"02-Gatekeepers","index":3,"n_rows":8,"n_cols":8,"rows_kept":8,"merged":[[0,0,0,5],[2,0,3,0],[2,1,3,1],[2,2,3,2],[2,3,3,3],[2,4,2,5],[2,6,2,7]]}
["Technical Gatekeepers as per 240-95240645, Technical Evaluation Criteria for Standby Batteries"]
["Note: All gatekeepers need to be \"Yes\" in order to proceed with evaluation"]
["#","Mandatory Technical Criteria Description","Comply","Reference to evidence (where applicable)","Evaluator 1",null,"Evaluator 2"]
[{"$nulls":4},"Schedule B","Comment/s","Schedule B","Comment/s"]
[1,"The tenderer shall offer the FULL Scope of the Project (Equipment and Services):\n1) Cells, Cabinets, Stands, Accessories and Ancillary Equipment\n2) Supply, Factory Acceptance Testing (FAT), Transportation, Loading and Offloading, Installation and Commissioning, Decommissioning and Disposal","(Select Option)",null,"(Select Option)",null,"(Select Option)"]
[2,"The tenderer shall submit Type Test Certificates and Type Test Reports for ALL the offered equipment. IEC 62619, IEC 62620","(Select Option)",null,"(Select Option)",null,"(Select Option)"]
[3,"Tenderer has submitted an OEM letter meeting the requirements as listed in Section 3.2.1.2.","(Select Option)",null,"(Select Option)",null,"(Select Option)"]
[4,"The tenderer has a local (South African) office and workshop.","(Select Option)",null,"(Select Option)",null,"(Select Option)"]

{"sheet":"03-Questionnaire","index":4,"n_rows":50,"n_cols":4,"rows_kept":50,"merged":[[7,0,8,0],[7,3,8,3],[9,0,10,0],[9,3,10,3],[11,0,12,0],[11,3,12,3],[16,0,21,0],[35,0,36,0],[35,3,36,3],[37,0,38,0],[37,3,38,3],[39,0,40,0],[39,3,40,3]]}
["#","Question","Response","Proof to be submitted"]
["A","Tenderer"]
[1,"Company name"]
[2,"Address of Head Quarters"]
[3,"Contact details"]
[4,"Website adress"]
[5,"Company organogram",null,"Organogram"]
[6,"Does your company have ISO 9001:2008 or similar certification?",null,"Copy of Certificate"]
[null,"If yes, what is the expiration date of such certification?"]
[7,"Does your company have ISO 14001:2004 or similar certification?",null,"Copy of Certificate"]
[null,"If yes, what is the expiration date of such certification?"]
[8,"Does your company have OHSAS 18001:2007 or similar certification?",null,"Copy of Certificate"]
[null,"If yes, what is the expiration date of such certification?"]
[9,"If other certifications exist, please state them here.",null,"Copy of Certificate/s"]
[10,"Is there a formal agreement between your company and the manufacturer (OEM)?",null,"Copy of Certificate or Agreement"]
[11,"Have your staff been trained on the equipment been offered?",null,"Copy of Certificates or Agreements"]
[12,"Will your company be able to provide the following after sales support if and when required:"]
[null,"Technical support",null,"Company Organogram & CVs"]
[null,"Installation"]
[null,"Commissioning"]
[null,"Maintenance"]
[null,"De-commissioning"]
[13,"Does your company have the capability to perform local R&D?"]
[14,"Does your company have the capability to perform local faultfinding and repair?"]
[15,"What transport company will be used for deliveries?"]
[16,"Do they have the necessary licensing to operate as a dangerous goods transporter?",null,"Certificates / Dept. of Transport Lisence"]
[17,"What procedures are in place to manage field failures and ensure that these are effectively and timeously addressed.?",null,"Field Failure Management Procedure"]
[18,"What recycling procedure is place to ensure that redundant equipment is recycled in an environmentally friendly manner?",null,"Recycling Procedure & Certification"]
[]
["B","Manufacturer / OEM"]
[1,"Company name"]
[2,"Address of Head Quarters"]
[3,"Contact details"]
[4,"Website adress"]
[5,"Company organogram",null,"Organogram"]
[6,"Does your company have ISO 9001:2008 or similar certification?",null,"Copy of Certificate"]
[null,"If yes, what is the expiration date of such certification?"]
[7,"Does your company have ISO 14001:2004 or similar certification?",null,"Copy of Certificate"]
[null,"If yes, what is the expiration date of such certification?"]
[8,"Does your company have OHSAS 18001:2007 or similar certification?",null,"Copy of Certificate"]
[null,"If yes, what is the expiration date of such certification?"]
[9,"If other certifications exist, please state them here.",null,"Copy of Certificate/s"]
[10,"Where is the equipment R&D performed?"]
[11,"Where is the equipment manufactured?"]
[12,"Where will equipment be send that cannot be repaired locally?"]
[13,"What procedures are in place to manage field failures and ensure that these are effectively and timeously addressed.?",null,"Field Failure Management Procedure"]
[14,"What recycling procedure is place to ensure that redundant equipment is recycled in an environmentally friendly manner?",null,"Recycling Procedure & Certification"]
[]
["C","Contactable Customers","Response"]
[null,"Provide details of Customers that agreed to be available for equipment performance and service delivery questions (if required).","See \"Customer Details\""]

{"sheet":"04-Technical Schedules","index":5,"n_rows":150,"n_cols":14,"rows_kept":150,"merged":[[2,0,3,5],[4,0,4,5],[6,0,7,0],[6,1,7,1],[6,2,7,3],[6,4,6,5],[6,8,6,9],[6,10,6,11],[15,0,19,0],[23,0,24,0],[25,0,28,0],[33,0,35,0],[40,0,41,0],[48,2,49,2]]}
["TECHNICAL SCHEDULES - Lithium Iron Phosphate (LFP) cells/modules"]
[]
["Reference refers to the filename or document title and the page number/s and clause number in the document where the said compliance is indicated or mentioned."]
[]
[{"$f":"Index!C3","v":"240-170000103, Rev 1, Lithium Iron Phosphate Batteries Standard"}]
[]
["Caluse #","Description of Clause","Schedule A\n(Employer's Particular Requirement)",null,"Lithium Iron Phosphate (LFP) cells/modules",null,"#","Category","Evaluator 1",null,"Evaluator 2",null,"Evaluator 1","Evaluator 2"]
[{"$nulls":4},"Schedule B\n(Compliance)","Reference / Statement\n(Supporting Evidence)",null,null,"Schedule B","Comment/s","Schedule B","Comment/s","Score","Score"]
[3,"STANDARD","XXXXXXXXXXXXXXX",null,"XXXXXXXXXXXXXXX","XXXXXXXXXXXXXXX",null,null,"XXXXXXXXXXXXXXX","XXXXXXXXXXXXXXX","XXXXXXXXXXXXXXX","XXXXXXXXXXXXXXX",{"$f":"VLOOKUP(I9,EvaluatorScore,2,0)","v":{"$error":"#N/A"}},{"$f":"VLOOKUP(K9,EvaluatorScore,2,0)","v":{"$error":"#N/A"}}]
["3.1","GENERAL REQUIREMENTS","XXXXXXXXXXXXXXX",null,"XXXXXXXXXXXXXXX","XXXXXXXXXXXXXXX",null,null,"XXXXXXXXXXXXXXX","XXXXXXXXXXXXXXX","XXXXXXXXXXXXXXX","XXXXXXXXXXXXXXX",{"$f":"VLOOKUP(I10,EvaluatorScore,2,0)","v":{"$error":"#N/A"}},{"$f":"VLOOKUP(K10,EvaluatorScore,2,0)","v":{"$error":"#N/A"}}]
["a)","Scope","Gatekeeper",null,"XXXXXXXXXXXXXXX","XXXXXXXXXXXXXXX",null,null,"XXXXXXXXXXXXXXX","XXXXXXXXXXXXXXX","XXXXXXXXXXXXXXX","XXXXXXXXXXXXXXX",{"$error":"#N/A"},{"$error":"#N/A"}]
["b)","Safe Operation of Each battery assembly verified and certified by a SANA/ILAC acredited lab according to the requirements set out in IEC62619.","Gatekeeper - Certification",null,"XXXXXXXXXXXXXXX","XXXXXXXXXXXXXXX",null,null,"XXXXXXXXXXXXXXX","XXXXXXXXXXXXXXX","XXXXXXXXXXXXXXX","XXXXXXXXXXXXXXX",{"$error":"#N/A"},{"$error":"#N/A"}]
["c)","Battery assembly consisting of multiple series connected single cells or multiple series and/or parallel connected cell blocks, all the relevant test results and certification for the single cells shall be provided according to the requirements set out in IEC 62619.","Gatekeeper - Certification",null,"XXXXXXXXXXXXXXX","XXXXXXXXXXXXXXX",null,null,"XXXXXXXXXXXXXXX","XXXXXXXXXXXXXXX","XXXXXXXXXXXXXXX","XXXXXXXXXXXXXXX",{"$error":"#N/A"},{"$error":"#N/A"}]
["d)","The battery assembly shall be supplied in a charged state with test results","Yes",null,"(Select Option)",null,{"$f":"VLOOKUP(H14,Scoring!$B$3:$C$9,2,0)","v":1},"General requirements","Non Responsive",null,"Non Responsive",null,0,0]
["e)","Cells shall be commissioned and their capacity tested with automated test results by the manufacturer/supplier at his works before being transported to the required destination","Yes - as specified",null,"(Select Option)",null,{"$f":"VLOOKUP(H15,Scoring!$B$3:$C$9,2,0)","v":1},"General requirements","Non Responsive",null,"Non Responsive",null,0,0]
["f)","Automated test results are to include the following data.","XXXXXXXXXXXXXXX",null,"XXXXXXXXXXXXXXX","XXXXXXXXXXXXXXX",null,null,"XXXXXXXXXXXXXXX","XXXXXXXXXXXXXXX","XXXXXXXXXXXXXXX","XXXXXXXXXXXXXXX",{"$error":"#N/A"},{"$error":"#N/A"}]
[null,"Cell voltages logged date and time-stamped.","Yes - as specified",null,"(Select Option)",null,{"$f":"VLOOKUP(H17,Scoring!$B$3:$C$9,2,0)","v":1},"General requirements","Non Responsive",null,"Non Responsive",null,0,0]
[null,"Battery bank voltage with discharge current logged for the duration of the discharge test.","Yes - as specified",null,"(Select Option)",null,{"$f":"VLOOKUP(H18,Scoring!$B$3:$C$9,2,0)","v":1},"General requirements","Non Responsive",null,"Non Responsive",null,0,0]
[null,"These results shall be supplied in the original data logging reporting format.","Yes",null,"(Select Option)",null,{"$f":"VLOOKUP(H19,Scoring!$B$3:$C$9,2,0)","v":1},"General requirements","Non Responsive",null,"Non Responsive",null,0,0]
[null,"This information shall be supplied in hard copy and be available in electronic format.","Yes",null,"(Select Option)",null,{"$f":"VLOOKUP(H20,Scoring!$B$3:$C$9,2,0)","v":1},"General requirements","Non Responsive",null,"Non Responsive",null,0,0]
["g)","All battery banks shall be supplied complete with all necessary intercell connectors, nuts, bolts, washers, anti-corrosion lubricant, cell numbers and capacity test reports.","Yes",null,"(Select Option)",null,{"$f":"VLOOKUP(H21,Scoring!$B$3:$C$9,2,0)","v":1},"General requirements","Non Responsive",null,"Non Responsive",null,0,0]
["h)","Each battery assembly shall have an integrated battery management system (BMS).","Yes",null,"(Select Option)",null,{"$f":"VLOOKUP(H22,Scoring!$B$3:$C$9,2,0)","v":1},"General requirements","Non Responsive",null,"Non Responsive",null,0,0]
["i)","When required, the supplier shall also be responsible for the provision of maintenance equipment, safety equipment, battery cabinets, terminating devices and inter-row connectors.","Yes",null,"(Select Option)",null,{"$f":"VLOOKUP(H23,Scoring!$B$3:$C$9,2,0)","v":1},"General requirements","Non Responsive",null,"Non Responsive",null,0,0]
["j)","Direct communication access between Eskom and OEM shall be catered for on technical issues. ","Yes",null,"(Select Option)",null,{"$f":"VLOOKUP(H24,Scoring!$B$3:$C$9,2,0)","v":1},"General requirements","Non Responsive",null,"Non Responsive",null,0,0]
[null,"The contact details to be provided as part of tender information.","Yes",null,"(Select Option)",null,{"$f":"VLOOKUP(H25,Scoring!$B$3:$C$9,2,0)","v":1},"General requirements","Non Responsive",null,"Non Responsive",null,0,0]
["k)","OEM acknowledgement of certification/accreditation of the supplier","Yes",null,"(Select Option)",null,{"$f":"VLOOKUP(H26,Scoring!$B$3:$C$9,2,0)","v":1},"General requirements","Non Responsive",null,"Non Responsive",null,0,0]
[null,"Formal Distribution agreement/appointment should include duration and scope of contract.","Yes",null,"(Select Option)",null,{"$f":"VLOOKUP(H27,Scoring!$B$3:$C$9,2,0)","v":1},"General requirements","Non Responsive",null,"Non Responsive",null,0,0]
[null,"Technical support offered.","Yes",null,"(Select Option)",null,{"$f":"VLOOKUP(H28,Scoring!$B$3:$C$9,2,0)","v":1},"General requirements","Non Responsive",null,"Non Responsive",null,0,0]
[null,"Warranties offered via OEM directly to Eskom","Yes",null,"(Select Option)",null,{"$f":"VLOOKUP(H29,Scoring!$B$3:$C$9,2,0)","v":1},"General requirements","Non Responsive",null,"Non Responsive",null,0,0]
["3.2","ELECTRICAL PERFORMANCE REQUIREMENTS","XXXXXXXXXXXXXXX",null,"XXXXXXXXXXXXXXX","XXXXXXXXXXXXXXX",null,null,"XXXXXXXXXXXXXXX","XXXXXXXXXXXXXXX","XXXXXXXXXXXXXXX","XXXXXXXXXXXXXXX",{"$error":"#N/A"},{"$error":"#N/A"}]
["3.2.1","General","XXXXXXXXXXXXXXX",null,"XXXXXXXXXXXXXXX","XXXXXXXXXXXXXXX",null,null,"XXXXXXXXXXXXXXX","XXXXXXXXXXXXXXX","XXXXXXXXXXXXXXX","XXXXXXXXXXXXXXX",{"$error":"#N/A"},{"$error":"#N/A"}]
["3.2.2","Rated capacity","Comply",null,"(Select Option)",null,{"$f":"VLOOKUP(H32,Scoring!$B$3:$C$9,2,0)","v":2},"Electrical performance requirements","Non Responsive",null,"Non Responsive",null,0,0]
["3.2.2.1","Compliance to requirements of IEC 62620:2014","Comply",null,"(Select Option)",null,{"$f":"VLOOKUP(H33,Scoring!$B$3:$C$9,2,0)","v":2},"Electrical performance requirements","Non Responsive",null,"Non Responsive",null,0,0]
["3.2.2.2","Reference temperature",25,"°C","(Select Option)",null,{"$f":"VLOOKUP(H34,Scoring!$B$3:$C$9,2,0)","v":2},"Electrical performance requirements","Non Responsive",null,"Non Responsive",null,0,0]
[null,"Discharge Period",5,"h","(Select Option)",null,{"$f":"VLOOKUP(H35,Scoring!$B$3:$C$9,2,0)","v":2},"Electrical performance requirements","Non Responsive",null,"Non Responsive",null,0,0]
[null,"Final end of discharge voltage","Specify with Reference",null,"(Select Option)",null,{"$f":"VLOOKUP(H36,Scoring!$B$3:$C$9,2,0)","v":2},"Electrical performance requirements","Non Responsive",null,"Non Responsive",null,0,0]
["3.2.2.3","Required battery capacities as per Lithium ion Phosphate Ah worksheet","See \"05-Offered Cells\"",null,"(Select Option)",null,{"$f":"VLOOKUP(H37,Scoring!$B$3:$C$9,2,0)","v":2},"Electrical performance requirements","Non Responsive",null,"Non Responsive",null,0,0]
["3.2.3","Discharge performance at +25 °C","See 3.6 Tests",null,"XXXXXXXXXXXXXXX","XXXXXXXXXXXXXXX",null,null,"XXXXXXXXXXXXXXX","XXXXXXXXXXXXXXX","XXXXXXXXXXXXXXX","XXXXXXXXXXXXXXX",{"$error":"#N/A"},{"$error":"#N/A"}]
["3.2.4","Discharge performance at low temperature","See 3.6 Tests",null,"XXXXXXXXXXXXXXX","XXXXXXXXXXXXXXX",null,null,"XXXXXXXXXXXXXXX","XXXXXXXXXXXXXXX","XXXXXXXXXXXXXXX","XXXXXXXXXXXXXXX",{"$error":"#N/A"},{"$error":"#N/A"}]
["3.2.5","High rate discharge permissible current","See 3.6 Tests",null,"XXXXXXXXXXXXXXX","XXXXXXXXXXXXXXX",null,null,"XXXXXXXXXXXXXXX","XXXXXXXXXXXXXXX","XXXXXXXXXXXXXXX","XXXXXXXXXXXXXXX",{"$error":"#N/A"},{"$error":"#N/A"}]
["3.2.6","Suitability for floating operation","See 3.6 Tests",null,"XXXXXXXXXXXXXXX","XXXXXXXXXXXXXXX",null,null,"XXXXXXXXXXXXXXX","XXXXXXXXXXXXXXX","XXXXXXXXXXXXXXX","XXXXXXXXXXXXXXX",{"$error":"#N/A"},{"$error":"#N/A"}]
[null,"Fully charge state – under float: Voltage/cell [V]","Specify with Reference",null,"(Select Option)",null,{"$f":"VLOOKUP(H42,Scoring!$B$3:$C$9,2,0)","v":4},"Operational requirements","Non Responsive",null,"Non Responsive",null,0,0]
["3.2.7","Endurance","XXXXXXXXXXXXXXX",null,"XXXXXXXXXXXXXXX","XXXXXXXXXXXXXXX",null,null,"XXXXXXXXXXXXXXX","XXXXXXXXXXXXXXX","XXXXXXXXXXXXXXX","XXXXXXXXXXXXXXX",{"$error":"#N/A"},{"$error":"#N/A"}]
[null,"Expected life",15,"yrs","(Select Option)",null,{"$f":"VLOOKUP(H44,Scoring!$B$3:$C$9,2,0)","v":2},"Electrical performance requirements","Non Responsive",null,"Non Responsive",null,0,0]
[null,"End-of-life capacity","80% C5","Ah","(Select Option)",null,{"$f":"VLOOKUP(H45,Scoring!$B$3:$C$9,2,0)","v":2},"Electrical performance requirements","Non Responsive",null,"Non Responsive",null,0,0]
[null,"Deterioration rate / capacity loss [%Ah/yr]","Specify with Reference","%Ah/yr","(Select Option)",null,{"$f":"VLOOKUP(H46,Scoring!$B$3:$C$9,2,0)","v":2},"Electrical performance requirements","Non Responsive",null,"Non Responsive",null,0,0]
[null,"Number of cycles to 80% C5","Specify with Reference",null,"(Select Option)",null,{"$f":"VLOOKUP(H47,Scoring!$B$3:$C$9,2,0)","v":2},"Electrical performance requirements","Non Responsive",null,"Non Responsive",null,0,0]
["3.2.8","Charge retention","See 3.6 Tests",null,"XXXXXXXXXXXXXXX","XXXXXXXXXXXXXXX",null,null,"XXXXXXXXXXXXXXX","XXXXXXXXXXXXXXX","XXXXXXXXXXXXXXX","XXXXXXXXXXXXXXX",{"$error":"#N/A"},{"$error":"#N/A"}]
["a)","Short-circuit current (ISC) [kA]","See \"05-Offered Cells\"","kA","(Select Option)",null,{"$f":"VLOOKUP(H49,Scoring!$B$3:$C$9,2,0)","v":2},"Electrical performance requirements","Non Responsive",null,"Non Responsive",null,0,0]
["b)","Internal resistance (Rdc) [Ω]",null,"Ω","(Select Option)",null,{"$f":"VLOOKUP(H50,Scoring!$B$3:$C$9,2,0)","v":2},"Electrical performance requirements","Non Responsive",null,"Non Responsive",null,0,0]
["3.2.10","Tolerance to AC components of the DC supply","XXXXXXXXXXXXXXX",null,"XXXXXXXXXXXXXXX","XXXXXXXXXXXXXXX",null,null,"XXXXXXXXXXXXXXX","XXXXXXXXXXXXXXX","XXXXXXXXXXXXXXX","XXXXXXXXXXXXXXX",{"$error":"#N/A"},{"$error":"#N/A"}]
["3.2.10.1","Maximum allowable RMS ripple current and effect on battery life [mA]","Specify with Reference","mA","(Select Option)",null,{"$f":"VLOOKUP(H52,Scoring!$B$3:$C$9,2,0)","v":2},"Electrical performance requirements","Non Responsive",null,"Non Responsive",null,0,0]
["3.2.10.2","Maximum allowable RMS ripple voltage and effect on battery life [mV]","Specify with Reference","mV","(Select Option)",null,{"$f":"VLOOKUP(H53,Scoring!$B$3:$C$9,2,0)","v":2},"Electrical performance requirements","Non Responsive",null,"Non Responsive",null,0,0]
["3.2.11","Effect of temperature","XXXXXXXXXXXXXXX",null,"XXXXXXXXXXXXXXX","XXXXXXXXXXXXXXX",null,null,"XXXXXXXXXXXXXXX","XXXXXXXXXXXXXXX","XXXXXXXXXXXXXXX","XXXXXXXXXXXXXXX",{"$error":"#N/A"},{"$error":"#N/A"}]
["3.2.11.1","Effect of temperature on expected battery life","Specify with Reference",null,"(Select Option)",null,{"$f":"VLOOKUP(H55,Scoring!$B$3:$C$9,2,0)","v":2},"Electrical performance requirements","Non Responsive",null,"Non Responsive",null,0,0]
["3.2.11.2","Temperature derating – Table/Graph","Specify with Reference",null,"(Select Option)",null,{"$f":"VLOOKUP(H56,Scoring!$B$3:$C$9,2,0)","v":2},"Electrical performance requirements","Non Responsive",null,"Non Responsive",null,0,0]
["3.3","Mechanical requirements","XXXXXXXXXXXXXXX",null,"XXXXXXXXXXXXXXX","XXXXXXXXXXXXXXX",null,null,"XXXXXXXXXXXXXXX","XXXXXXXXXXXXXXX","XXXXXXXXXXXXXXX","XXXXXXXXXXXXXXX",{"$error":"#N/A"},{"$error":"#N/A"}]
["3.3.1","General","XXXXXXXXXXXXXXX",null,"XXXXXXXXXXXXXXX","XXXXXXXXXXXXXXX",null,null,"XXXXXXXXXXXXXXX","XXXXXXXXXXXXXXX","XXXXXXXXXXXXXXX","XXXXXXXXXXXXXXX",{"$error":"#N/A"},{"$error":"#N/A"}]
["3.3.1.1","Performance type LPF cells required","Type E - Low performance",null,"(Select Option)",null,{"$f":"VLOOKUP(H59,Scoring!$B$3:$C$9,2,0)","v":2},"Electrical performance requirements","Non Responsive",null,"Non Responsive",null,0,0]
["3.3.1.2","Mechanical stress during transportation and handling","Comply",null,"(Select Option)",null,{"$f":"VLOOKUP(H60,Scoring!$B$3:$C$9,2,0)","v":4},"Operational requirements","Non Responsive",null,"Non Responsive",null,0,0]
["3.3.1.3","Resistance to Earthquakes","No",null,"(Select Option)",null,{"$f":"VLOOKUP(H61,Scoring!$B$3:$C$9,2,0)","v":4},"Operational requirements","Non Responsive",null,"Non Responsive",null,0,0]
["3.3.2","Battery Cabinet","Yes",null,"(Select Option)",null,{"$f":"VLOOKUP(H62,Scoring!$B$3:$C$9,2,0)","v":5},"Ancillary equipment","Non Responsive",null,"Non Responsive",null,0,0]
["3.3.3","Containers","XXXXXXXXXXXXXXX",null,"XXXXXXXXXXXXXXX","XXXXXXXXXXXXXXX",null,null,"XXXXXXXXXXXXXXX","XXXXXXXXXXXXXXX","XXXXXXXXXXXXXXX","XXXXXXXXXXXXXXX",{"$error":"#N/A"},{"$error":"#N/A"}]
["3.3.3.1","Construction materials used in the manufacture of the cell/battery bank containers.","Specify with Reference",null,"(Select Option)",null,{"$f":"VLOOKUP(H64,Scoring!$B$3:$C$9,2,0)","v":3},"Mechanical requirements","Non Responsive",null,"Non Responsive",null,0,0]
["3.3.3.2","Indicate the cell construction as to cylindrical, prismatic or pouch.","Specify with Reference",null,"(Select Option)",null,{"$f":"VLOOKUP(H65,Scoring!$B$3:$C$9,2,0)","v":3},"Mechanical requirements","Non Responsive",null,"Non Responsive",null,0,0]
["3.3.3.3","Cell orientation","Specify with Reference",null,"(Select Option)",null,{"$f":"VLOOKUP(H66,Scoring!$B$3:$C$9,2,0)","v":3},"Mechanical requirements","Non Responsive",null,"Non Responsive",null,0,0]
["3.3.3.4","Battery modules have been constructed using flame retardant materials.","Comply with Reference",null,"(Select Option)",null,{"$f":"VLOOKUP(H67,Scoring!$B$3:$C$9,2,0)","v":3},"Mechanical requirements","Non Responsive",null,"Non Responsive",null,0,0]
["3.3.4","Cell, module and battery pack marking and labelling","XXXXXXXXXXXXXXX",null,"XXXXXXXXXXXXXXX","XXXXXXXXXXXXXXX",null,null,"XXXXXXXXXXXXXXX","XXXXXXXXXXXXXXX","XXXXXXXXXXXXXXX","XXXXXXXXXXXXXXX",{"$error":"#N/A"},{"$error":"#N/A"}]
["3.3.4.1-3.3.4.4","Marking as per standard","See 3.6 Tests",null,"XXXXXXXXXXXXXXX","XXXXXXXXXXXXXXX",null,null,"XXXXXXXXXXXXXXX","XXXXXXXXXXXXXXX","XXXXXXXXXXXXXXX","XXXXXXXXXXXXXXX",{"$error":"#N/A"},{"$error":"#N/A"}]
["3.3.4.5-3.3.4.8","Labels","Comply as specified",null,"(Select Option)",null,{"$f":"VLOOKUP(H70,Scoring!$B$3:$C$9,2,0)","v":3},"Mechanical requirements","Non Responsive",null,"Non Responsive",null,0,0]
["3.3.4.9","Barcodes","No",null,"(Select Option)",null,{"$f":"VLOOKUP(H71,Scoring!$B$3:$C$9,2,0)","v":3},"Mechanical requirements","Non Responsive",null,"Non Responsive",null,0,0]
["3.4","Operational Conditions","XXXXXXXXXXXXXXX",null,"XXXXXXXXXXXXXXX","XXXXXXXXXXXXXXX",null,null,"XXXXXXXXXXXXXXX","XXXXXXXXXXXXXXX","XXXXXXXXXXXXXXX","XXXXXXXXXXXXXXX",{"$error":"#N/A"},{"$error":"#N/A"}]
["3.4.1","Environmental conditions","XXXXXXXXXXXXXXX",null,"XXXXXXXXXXXXXXX","XXXXXXXXXXXXXXX",null,null,"XXXXXXXXXXXXXXX","XXXXXXXXXXXXXXX","XXXXXXXXXXXXXXX","XXXXXXXXXXXXXXX",{"$error":"#N/A"},{"$error":"#N/A"}]
["3.4.1.1","Altitude",2200,"m","(Select Option)",null,{"$f":"VLOOKUP(H74,Scoring!$B$3:$C$9,2,0)","v":4},"Operational requirements","Non Responsive",null,"Non Responsive",null,{"$f":"VLOOKUP(I74,EvaluatorScore,2,0)","v":0},{"$f":"VLOOKUP(K74,EvaluatorScore,2,0)","v":0}]
[null,"Relative humidity","10% - 85 non-condensing","%","(Select Option)",null,{"$f":"VLOOKUP(H75,Scoring!$B$3:$C$9,2,0)","v":4},"Operational requirements","Non Responsive",null,"Non Responsive",null,0,0]
[null,"Lightning","High",null,"(Select Option)",null,{"$f":"VLOOKUP(H76,Scoring!$B$3:$C$9,2,0)","v":4},"Operational requirements","Non Responsive",null,"Non Responsive",null,0,0]
["3.4.1.2","Outdoor air temperatures:","XXXXXXXXXXXXXXX",null,"XXXXXXXXXXXXXXX","XXXXXXXXXXXXXXX",null,null,"XXXXXXXXXXXXXXX","XXXXXXXXXXXXXXX","XXXXXXXXXXXXXXX","XXXXXXXXXXXXXXX",{"$error":"#N/A"},{"$error":"#N/A"}]
["a","Maximum",45,"°C","(Select Option)",null,{"$f":"VLOOKUP(H78,Scoring!$B$3:$C$9,2,0)","v":4},"Operational requirements","Non Responsive",null,"Non Responsive",null,0,0]
["b","Daily average",30,"°C","(Select Option)",null,{"$f":"VLOOKUP(H79,Scoring!$B$3:$C$9,2,0)","v":4},"Operational requirements","Non Responsive",null,"Non Responsive",null,0,0]
["c","Yearly average",20,"°C","(Select Option)",null,{"$f":"VLOOKUP(H80,Scoring!$B$3:$C$9,2,0)","v":4},"Operational requirements","Non Responsive",null,"Non Responsive",null,0,0]
["d","Minimum",-10,"°C","(Select Option)",null,{"$f":"VLOOKUP(H81,Scoring!$B$3:$C$9,2,0)","v":4},"Operational requirements","Non Responsive",null,"Non Responsive",null,0,0]
["3.4.1.3","Equipment room air temperatures:","XXXXXXXXXXXXXXX",null,"XXXXXXXXXXXXXXX","XXXXXXXXXXXXXXX",null,null,"XXXXXXXXXXXXXXX","XXXXXXXXXXXXXXX","XXXXXXXXXXXXXXX","XXXXXXXXXXXXXXX",{"$error":"#N/A"},{"$error":"#N/A"}]
["a","Maximum",50,"°C","(Select Option)",null,{"$f":"VLOOKUP(H83,Scoring!$B$3:$C$9,2,0)","v":4},"Operational requirements","Non Responsive",null,"Non Responsive",null,0,0]
["b","Daily average",35," °C","(Select Option)",null,{"$f":"VLOOKUP(H84,Scoring!$B$3:$C$9,2,0)","v":4},"Operational requirements","Non Responsive",null,"Non Responsive",null,0,0]
["c","Yearly average",25,"°C","(Select Option)",null,{"$f":"VLOOKUP(H85,Scoring!$B$3:$C$9,2,0)","v":4},"Operational requirements","Non Responsive",null,"Non Responsive",null,0,0]
["d","Minimum",-5,"°C","(Select Option)",null,{"$f":"VLOOKUP(H86,Scoring!$B$3:$C$9,2,0)","v":4},"Operational requirements","Non Responsive",null,"Non Responsive",null,0,0]
["3.4.1.4","Storage temperatures:","XXXXXXXXXXXXXXX",null,"XXXXXXXXXXXXXXX","XXXXXXXXXXXXXXX",null,null,"XXXXXXXXXXXXXXX","XXXXXXXXXXXXXXX","XXXXXXXXXXXXXXX","XXXXXXXXXXXXXXX",{"$error":"#N/A"},{"$error":"#N/A"}]
["a","Maximum",40," °C","(Select Option)",null,{"$f":"VLOOKUP(H88,Scoring!$B$3:$C$9,2,0)","v":4},"Operational requirements","Non Responsive",null,"Non Responsive",null,0,0]
["b","Daily average",25,"°C","(Select Option)",null,{"$f":"VLOOKUP(H89,Scoring!$B$3:$C$9,2,0)","v":4},"Operational requirements","Non Responsive",null,"Non Responsive",null,0,0]
["c","Yearly average",20,"°C","(Select Option)",null,{"$f":"VLOOKUP(H90,Scoring!$B$3:$C$9,2,0)","v":4},"Operational requirements","Non Responsive",null,"Non Responsive",null,0,0]
["d","Minimum",-5,"°C","(Select Option)",null,{"$f":"VLOOKUP(H91,Scoring!$B$3:$C$9,2,0)","v":4},"Operational requirements","Non Responsive",null,"Non Responsive",null,0,0]
["3.4.2","Application","Comply as specified",null,"(Select Option)",null,{"$f":"VLOOKUP(H92,Scoring!$B$3:$C$9,2,0)","v":4},"Operational requirements","Non Responsive",null,"Non Responsive",null,0,0]
["3.4.3","Charging regimes and BMS","XXXXXXXXXXXXXXX",null,"XXXXXXXXXXXXXXX","XXXXXXXXXXXXXXX",null,null,"XXXXXXXXXXXXXXX","XXXXXXXXXXXXXXX","XXXXXXXXXXXXXXX","XXXXXXXXXXXXXXX",{"$error":"#N/A"},{"$error":"#N/A"}]
["3.4.3.1","Meet safety requirements of IEC 62619:2017","Comply",null,"(Select Option)",null,{"$f":"VLOOKUP(H94,Scoring!$B$3:$C$9,2,0)","v":4},"Operational requirements","Non Responsive",null,"Non Responsive",null,0,0]
["3.4.3.2","LFP cell voltage limits","XXXXXXXXXXXXXXX",null,"XXXXXXXXXXXXXXX","XXXXXXXXXXXXXXX",null,null,"XXXXXXXXXXXXXXX","XXXXXXXXXXXXXXX","XXXXXXXXXXXXXXX","XXXXXXXXXXXXXXX",{"$error":"#N/A"},{"$error":"#N/A"}]
["a","LFP cells min voltage","Specify with Reference","V","(Select Option)",null,{"$f":"VLOOKUP(H96,Scoring!$B$3:$C$9,2,0)","v":4},"Operational requirements","Non Responsive",null,"Non Responsive",null,0,0]
["b","LFP cells max voltage","Specify with Reference","V","(Select Option)",null,{"$f":"VLOOKUP(H97,Scoring!$B$3:$C$9,2,0)","v":4},"Operational requirements","Non Responsive",null,"Non Responsive",null,0,0]
["3.4.3.3","BMS functionalities","XXXXXXXXXXXXXXX",null,"XXXXXXXXXXXXXXX","XXXXXXXXXXXXXXX",null,null,"XXXXXXXXXXXXXXX","XXXXXXXXXXXXXXX","XXXXXXXXXXXXXXX","XXXXXXXXXXXXXXX",{"$error":"#N/A"},{"$error":"#N/A"}]
["a","Under voltage disconnect","Comply with Reference",null,"(Select Option)",null,{"$f":"VLOOKUP(H99,Scoring!$B$3:$C$9,2,0)","v":4},"Operational requirements","Non Responsive",null,"Non Responsive",null,0,0]
["b","Over voltage protection","Comply with Reference",null,"(Select Option)",null,{"$f":"VLOOKUP(H100,Scoring!$B$3:$C$9,2,0)","v":4},"Operational requirements","Non Responsive",null,"Non Responsive",null,0,0]
["c","Over temperature shutdown","Comply with Reference",null,"(Select Option)",null,{"$f":"VLOOKUP(H101,Scoring!$B$3:$C$9,2,0)","v":4},"Operational requirements","Non Responsive",null,"Non Responsive",null,0,0]
["d","short-circuit protection","Comply with Reference",null,"(Select Option)",null,{"$f":"VLOOKUP(H102,Scoring!$B$3:$C$9,2,0)","v":4},"Operational requirements","Non Responsive",null,"Non Responsive",null,0,0]
["e","cell balancing","Comply with Reference",null,"(Select Option)",null,{"$f":"VLOOKUP(H103,Scoring!$B$3:$C$9,2,0)","v":4},"Operational requirements","Non Responsive",null,"Non Responsive",null,0,0]
["3.4.3.4","Local and remote alarms","Comply with Reference",null,"(Select Option)",null,{"$f":"VLOOKUP(H104,Scoring!$B$3:$C$9,2,0)","v":4},"Operational requirements","Non Responsive",null,"Non Responsive",null,0,0]
["3.4.4","Venting of gases","See 3.6 Tests",null,"XXXXXXXXXXXXXXX","XXXXXXXXXXXXXXX",null,null,"XXXXXXXXXXXXXXX","XXXXXXXXXXXXXXX","XXXXXXXXXXXXXXX","XXXXXXXXXXXXXXX",{"$error":"#N/A"},{"$error":"#N/A"}]
["3.4.5","Commissioning","XXXXXXXXXXXXXXX",null,"XXXXXXXXXXXXXXX","XXXXXXXXXXXXXXX",null,null,"XXXXXXXXXXXXXXX","XXXXXXXXXXXXXXX","XXXXXXXXXXXXXXX","XXXXXXXXXXXXXXX",{"$error":"#N/A"},{"$error":"#N/A"}]
[null,"OEM commissioning instructions documentation","Comply with Reference",null,"(Select Option)",null,{"$f":"VLOOKUP(H107,Scoring!$B$3:$C$9,2,0)","v":4},"Operational requirements","Non Responsive",null,"Non Responsive",null,0,0]
["3.4.6","Maintenance","XXXXXXXXXXXXXXX",null,"XXXXXXXXXXXXXXX","XXXXXXXXXXXXXXX",null,null,"XXXXXXXXXXXXXXX","XXXXXXXXXXXXXXX","XXXXXXXXXXXXXXX","XXXXXXXXXXXXXXX",{"$error":"#N/A"},{"$error":"#N/A"}]
[null,"OEM maintenance instructions documentation","Comply with Reference",null,"(Select Option)",null,{"$f":"VLOOKUP(H109,Scoring!$B$3:$C$9,2,0)","v":4},"Operational requirements","Non Responsive",null,"Non Responsive",null,0,0]
["3.4.7","Accessories:","XXXXXXXXXXXXXXX",null,"XXXXXXXXXXXXXXX","XXXXXXXXXXXXXXX",null,null,"XXXXXXXXXXXXXXX","XXXXXXXXXXXXXXX","XXXXXXXXXXXXXXX","XXXXXXXXXXXXXXX",{"$error":"#N/A"},{"$error":"#N/A"}]
[null,"Bolts","Yes – As specified",null,"(Select Option)",null,{"$f":"VLOOKUP(H111,Scoring!$B$3:$C$9,2,0)","v":4},"Operational requirements","Non Responsive",null,"Non Responsive",null,0,0]
[null,"nuts","Yes – As specified",null,"(Select Option)",null,{"$f":"VLOOKUP(H112,Scoring!$B$3:$C$9,2,0)","v":4},"Operational requirements","Non Responsive",null,"Non Responsive",null,0,0]
[null,"washers ","Yes – As specified",null,"(Select Option)",null,{"$f":"VLOOKUP(H113,Scoring!$B$3:$C$9,2,0)","v":4},"Operational requirements","Non Responsive",null,"Non Responsive",null,0,0]
[null,"washers ","Yes – As specified",null,"(Select Option)",null,{"$f":"VLOOKUP(H114,Scoring!$B$3:$C$9,2,0)","v":4},"Operational requirements","Non Responsive",null,"Non Responsive",null,0,0]
["3.4.8","Inter-row connectors required","Yes – As specified",null,"(Select Option)",null,{"$f":"VLOOKUP(H115,Scoring!$B$3:$C$9,2,0)","v":4},"Operational requirements","Non Responsive",null,"Non Responsive",null,0,0]
["3.4.9","Safety signs required","Yes – As specified",null,"(Select Option)",null,{"$f":"VLOOKUP(H116,Scoring!$B$3:$C$9,2,0)","v":4},"Operational requirements","Non Responsive",null,"Non Responsive",null,0,0]
["3.4.10","Equipment performance","Specify",null,"(Select Option)",null,{"$f":"VLOOKUP(H117,Scoring!$B$3:$C$9,2,0)","v":4},"Operational requirements","Non Responsive",null,"Non Responsive",null,0,0]
["3.4.11","Type test certificates, drawings and instruction manuals","Supply – As specified",null,"(Select Option)",null,{"$f":"VLOOKUP(H118,Scoring!$B$3:$C$9,2,0)","v":4},"Operational requirements","Non Responsive",null,"Non Responsive",null,0,0]
["3.4.12","Tools","Specify with Reference",null,"(Select Option)",null,{"$f":"VLOOKUP(H119,Scoring!$B$3:$C$9,2,0)","v":4},"Operational requirements","Non Responsive",null,"Non Responsive",null,0,0]
["3.4.13","Spares","Comply with Reference",null,"(Select Option)",null,{"$f":"VLOOKUP(H120,Scoring!$B$3:$C$9,2,0)","v":4},"Operational requirements","Non Responsive",null,"Non Responsive",null,0,0]
["3.4.14","Training","Yes: Comply with Reference",null,"(Select Option)",null,{"$f":"VLOOKUP(H121,Scoring!$B$3:$C$9,2,0)","v":4},"Operational requirements","Non Responsive",null,"Non Responsive",null,0,0]
["3.4.15","Warranty requirements","XXXXXXXXXXXXXXX",null,"XXXXXXXXXXXXXXX","XXXXXXXXXXXXXXX",null,null,"XXXXXXXXXXXXXXX","XXXXXXXXXXXXXXX","XXXXXXXXXXXXXXX","XXXXXXXXXXXXXXX",{"$error":"#N/A"},{"$error":"#N/A"}]
["3.4.15.1","OEM warranty ","> 2 years (Specify)","yrs","(Select Option)",null,{"$f":"VLOOKUP(H123,Scoring!$B$3:$C$9,2,0)","v":4},"Operational requirements","Non Responsive",null,"Non Responsive",null,0,0]
["3.4.15.2","Prorated Warranty","> 3 years (Specify)","yrs","(Select Option)",null,{"$f":"VLOOKUP(H124,Scoring!$B$3:$C$9,2,0)","v":4},"Operational requirements","Non Responsive",null,"Non Responsive",null,0,0]
["3.4.15.3","Warranty endorsed by the OEM.","Comply with Reference",null,"(Select Option)",null,{"$f":"VLOOKUP(H125,Scoring!$B$3:$C$9,2,0)","v":4},"Operational requirements","Non Responsive",null,"Non Responsive",null,0,0]
["3.4.15.4","Warranty as per enviromental conditions in the specifications","Comply with Reference",null,"(Select Option)",null,{"$f":"VLOOKUP(H126,Scoring!$B$3:$C$9,2,0)","v":4},"Operational requirements","Non Responsive",null,"Non Responsive",null,0,0]
["3.4.16","Local support","XXXXXXXXXXXXXXX",null,"XXXXXXXXXXXXXXX","XXXXXXXXXXXXXXX",null,null,"XXXXXXXXXXXXXXX","XXXXXXXXXXXXXXX","XXXXXXXXXXXXXXX","XXXXXXXXXXXXXXX",{"$error":"#N/A"},{"$error":"#N/A"}]
["3.4.16.1","During commissioning,24 hour response time to Eskom.","Comply",null,"(Select Option)",null,{"$f":"VLOOKUP(H128,Scoring!$B$3:$C$9,2,0)","v":4},"Operational requirements","Non Responsive",null,"Non Responsive",null,0,0]
["3.4.16.2","Trained support staff available on a national basis.","Comply",null,"(Select Option)",null,{"$f":"VLOOKUP(H129,Scoring!$B$3:$C$9,2,0)","v":4},"Operational requirements","Non Responsive",null,"Non Responsive",null,0,0]
["3.4.17","Disposal","XXXXXXXXXXXXXXX",null,"XXXXXXXXXXXXXXX","XXXXXXXXXXXXXXX",null,null,"XXXXXXXXXXXXXXX","XXXXXXXXXXXXXXX","XXXXXXXXXXXXXXX","XXXXXXXXXXXXXXX",{"$error":"#N/A"},{"$error":"#N/A"}]
["3.4.17.1","Environmentally sound disposal of all used (redundant) cells","As specified",null,"(Select Option)",null,{"$f":"VLOOKUP(H131,Scoring!$B$3:$C$9,2,0)","v":4},"Operational requirements","Non Responsive",null,"Non Responsive",null,0,0]
["3.4.17.2","Disposal of redundant cells and electrolyte shall be in line with 240-89797258,","Comply",null,"(Select Option)",null,{"$f":"VLOOKUP(H132,Scoring!$B$3:$C$9,2,0)","v":4},"Operational requirements","Non Responsive",null,"Non Responsive",null,0,0]
["3.4.17.3","Disposal Process","XXXXXXXXXXXXXXX",null,"XXXXXXXXXXXXXXX","XXXXXXXXXXXXXXX",null,null,"XXXXXXXXXXXXXXX","XXXXXXXXXXXXXXX","XXXXXXXXXXXXXXX","XXXXXXXXXXXXXXX",{"$error":"#N/A"},{"$error":"#N/A"}]
["a","Collection of redundant cells","Comply",null,"(Select Option)",null,{"$f":"VLOOKUP(H134,Scoring!$B$3:$C$9,2,0)","v":4},"Operational requirements","Non Responsive",null,"Non Responsive",null,0,0]
["b","Crating of cells or wrapping of cells on pallets for transport","Comply",null,"(Select Option)",null,{"$f":"VLOOKUP(H135,Scoring!$B$3:$C$9,2,0)","v":4},"Operational requirements","Non Responsive",null,"Non Responsive",null,0,0]
["c","Removal of redundant plant","Comply",null,"(Select Option)",null,{"$f":"VLOOKUP(H136,Scoring!$B$3:$C$9,2,0)","v":4},"Operational requirements","Non Responsive",null,"Non Responsive",null,0,0]
["3.4.18","Equipment limitations","Specify with Reference",null,"(Select Option)",null,{"$f":"VLOOKUP(H137,Scoring!$B$3:$C$9,2,0)","v":4},"Operational requirements","Non Responsive",null,"Non Responsive",null,0,0]
["3.5","Ancillary equipment","XXXXXXXXXXXXXXX",null,"XXXXXXXXXXXXXXX","XXXXXXXXXXXXXXX",null,null,"XXXXXXXXXXXXXXX","XXXXXXXXXXXXXXX","XXXXXXXXXXXXXXX","XXXXXXXXXXXXXXX",{"$f":"VLOOKUP(I138,EvaluatorScore,2,0)","v":{"$error":"#N/A"}},{"$f":"VLOOKUP(K138,EvaluatorScore,2,0)","v":{"$error":"#N/A"}}]
["3.5.1","Specialised maintenance equipment required","Specify with Reference",null,"(Select Option)",null,{"$f":"VLOOKUP(H139,Scoring!$B$3:$C$9,2,0)","v":5},"Ancillary equipment","Non Responsive",null,"Non Responsive",null,0,0]
["3.5.2","Battery cabinets","Yes – Specify",null,"(Select Option)",null,{"$f":"VLOOKUP(H140,Scoring!$B$3:$C$9,2,0)","v":5},"Ancillary equipment","Non Responsive",null,"Non Responsive",null,0,0]
["3.5.2.1","Safety signs","Yes – As specified",null,"(Select Option)",null,{"$f":"VLOOKUP(H141,Scoring!$B$3:$C$9,2,0)","v":5},"Ancillary equipment","Non Responsive",null,"Non Responsive",null,0,0]
["3.6","Tests","XXXXXXXXXXXXXXX",null,"XXXXXXXXXXXXXXX","XXXXXXXXXXXXXXX",null,null,"XXXXXXXXXXXXXXX","XXXXXXXXXXXXXXX","XXXXXXXXXXXXXXX","XXXXXXXXXXXXXXX",{"$error":"#N/A"},{"$error":"#N/A"}]
["3.6.1","General","Comply- as specified",null,"(Select Option)",null,{"$f":"VLOOKUP(H143,Scoring!$B$3:$C$9,2,0)","v":6},"Tests","Non Responsive",null,"Non Responsive",null,0,0]
["3.6.2","Electrical and mechanical tests","Gatekeeper",null,"XXXXXXXXXXXXXXX","XXXXXXXXXXXXXXX",null,null,"XXXXXXXXXXXXXXX","XXXXXXXXXXXXXXX","XXXXXXXXXXXXXXX","XXXXXXXXXXXXXXX",{"$error":"#N/A"},{"$error":"#N/A"}]
["3.6.3","Test certificates (FATs)","As specified",null,"(Select Option)",null,{"$f":"VLOOKUP(H145,Scoring!$B$3:$C$9,2,0)","v":6},"Tests","Non Responsive",null,"Non Responsive",null,0,0]
["3.6.4","Clearance for dispatch","As specified",null,"(Select Option)",null,{"$f":"VLOOKUP(H146,Scoring!$B$3:$C$9,2,0)","v":6},"Tests","Non Responsive",null,"Non Responsive",null,0,0]
["3.7","Packaging, labelling, marking and transport","XXXXXXXXXXXXXXX",null,"XXXXXXXXXXXXXXX","XXXXXXXXXXXXXXX",null,null,"XXXXXXXXXXXXXXX","XXXXXXXXXXXXXXX","XXXXXXXXXXXXXXX","XXXXXXXXXXXXXXX",{"$error":"#N/A"},{"$error":"#N/A"}]
["3.7.1","Packaging","As specified",null,"(Select Option)",null,{"$f":"VLOOKUP(H148,Scoring!$B$3:$C$9,2,0)","v":7},"Packaging, labelling, marking and transport","Non Responsive",null,"Non Responsive",null,0,0]
["3.7.2","Labelling","As specified",null,"(Select Option)",null,{"$f":"VLOOKUP(H149,Scoring!$B$3:$C$9,2,0)","v":7},"Packaging, labelling, marking and transport","Non Responsive",null,"Non Responsive",null,0,0]
["3.7.3","Transport","As specified",null,"(Select Option)",null,{"$f":"VLOOKUP(H150,Scoring!$B$3:$C$9,2,0)","v":7},"Packaging, labelling, marking and transport","Non Responsive",null,"Non Responsive",null,0,0]

{"sheet":"Scoring","index":6,"n_rows":10,"n_cols":8,"rows_kept":10,"hidden":true,"merged":[[0,0,1,0],[0,1,1,1],[0,2,1,2],[0,3,1,3],[0,4,0,7]]}
["#","Qualitative Technical Criteria Description",null,"Weight","LFP Batteries"]
[{"$nulls":4},"S1","S2","WS1","WS2"]
[1,"General requirements",1,{"v":0.1,"d":"10%"},{"$f":"SUMIF('04-Technical Schedules'!$G$7:$G$160,$C3,'04-Technical Schedules'!$M$7:$M$160)/(COUNTIF('04-Technical Schedules'!$G$7:$G$160,$C3)*5)","v":{"v":0,"d":"0%"}},{"$f":"SUMIF('04-Technical Schedules'!$G$7:$G$160,$C3,'04-Technical Schedules'!$N$7:$N$160)/(COUNTIF('04-Technical Schedules'!$G$7:$G$160,$C3)*5)","v":{"v":0,"d":"0%"}},{"$f":"$D3*E3","v":{"v":0,"d":"0%"}},{"v":0,"d":"0%"}]
[2,"Electrical performance requirements",2,{"v":0.25,"d":"25%"},{"$f":"SUMIF('04-Technical Schedules'!$G$7:$G$160,$C4,'04-Technical Schedules'!$M$7:$M$160)/(COUNTIF('04-Technical Schedules'!$G$7:$G$160,$C4)*5)","v":{"v":0,"d":"0%"}},{"$f":"SUMIF('04-Technical Schedules'!$G$7:$G$160,$C4,'04-Technical Schedules'!$N$7:$N$160)/(COUNTIF('04-Technical Schedules'!$G$7:$G$160,$C4)*5)","v":{"v":0,"d":"0%"}},{"v":0,"d":"0%"},{"v":0,"d":"0%"}]
[3,"Mechanical requirements",3,{"v":0.15,"d":"15%"},{"$f":"SUMIF('04-Technical Schedules'!$G$7:$G$160,$C5,'04-Technical Schedules'!$M$7:$M$160)/(COUNTIF('04-Technical Schedules'!$G$7:$G$160,$C5)*5)","v":{"v":0,"d":"0%"}},{"$f":"SUMIF('04-Technical Schedules'!$G$7:$G$160,$C5,'04-Technical Schedules'!$N$7:$N$160)/(COUNTIF('04-Technical Schedules'!$G$7:$G$160,$C5)*5)","v":{"v":0,"d":"0%"}},{"v":0,"d":"0%"},{"v":0,"d":"0%"}]
[4,"Operational requirements",4,{"v":0.25,"d":"25%"},{"$f":"SUMIF('04-Technical Schedules'!$G$7:$G$160,$C6,'04-Technical Schedules'!$M$7:$M$160)/(COUNTIF('04-Technical Schedules'!$G$7:$G$160,$C6)*5)","v":{"v":0,"d":"0%"}},{"$f":"SUMIF('04-Technical Schedules'!$G$7:$G$160,$C6,'04-Technical Schedules'!$N$7:$N$160)/(COUNTIF('04-Technical Schedules'!$G$7:$G$160,$C6)*5)","v":{"v":0,"d":"0%"}},{"v":0,"d":"0%"},{"v":0,"d":"0%"}]
[5,"Ancillary equipment",5,{"v":0.1,"d":"10%"},{"$f":"SUMIF('04-Technical Schedules'!$G$7:$G$160,$C7,'04-Technical Schedules'!$M$7:$M$160)/(COUNTIF('04-Technical Schedules'!$G$7:$G$160,$C7)*5)","v":{"v":0,"d":"0%"}},{"$f":"SUMIF('04-Technical Schedules'!$G$7:$G$160,$C7,'04-Technical Schedules'!$N$7:$N$160)/(COUNTIF('04-Technical Schedules'!$G$7:$G$160,$C7)*5)","v":{"v":0,"d":"0%"}},{"v":0,"d":"0%"},{"v":0,"d":"0%"}]
[6,"Tests",6,{"v":0.05,"d":"5%"},{"$f":"SUMIF('04-Technical Schedules'!$G$7:$G$160,$C8,'04-Technical Schedules'!$M$7:$M$160)/(COUNTIF('04-Technical Schedules'!$G$7:$G$160,$C8)*5)","v":{"v":0,"d":"0%"}},{"$f":"SUMIF('04-Technical Schedules'!$G$7:$G$160,$C8,'04-Technical Schedules'!$N$7:$N$160)/(COUNTIF('04-Technical Schedules'!$G$7:$G$160,$C8)*5)","v":{"v":0,"d":"0%"}},{"v":0,"d":"0%"},{"v":0,"d":"0%"}]
[7,"Packaging, labelling, marking and transport",7,{"v":0.1,"d":"10%"},{"$f":"SUMIF('04-Technical Schedules'!$G$7:$G$160,$C9,'04-Technical Schedules'!$M$7:$M$160)/(COUNTIF('04-Technical Schedules'!$G$7:$G$160,$C9)*5)","v":{"v":0,"d":"0%"}},{"$f":"SUMIF('04-Technical Schedules'!$G$7:$G$160,$C9,'04-Technical Schedules'!$N$7:$N$160)/(COUNTIF('04-Technical Schedules'!$G$7:$G$160,$C9)*5)","v":{"v":0,"d":"0%"}},{"v":0,"d":"0%"},{"v":0,"d":"0%"}]
[{"$nulls":3},{"$f":"SUM(D3:D9)","v":{"v":1,"d":"100%"}}]

{"sheet":"Lists","index":7,"n_rows":26,"n_cols":7,"rows_kept":26,"hidden":true}
["(Select Option)",0,null,"Non Responsive",0,null,"(Select Voltage)"]
["Comply",5,null,"Comply",5,null,{"v":1.2,"d":"1.20"}]
["Partially Comply",4,null,"Partially Comply",4,null,{"v":2,"d":"2.00"}]
["Do Not Comply",2,null,"Do Not Comply",2,null,{"v":3.7,"d":"3.70"}]
[{"$nulls":6},12]
["(Select Option)",0,{"$nulls":4},48]
["Certificate",2,{"$nulls":4},110]
["Test Report",2,{"$nulls":4},220]
["Certificate & Test Report",5,{"$nulls":4},"Other"]
["Not Available",2]
[]
["Cell Configuration Options:"]
["(Select Option)"]
["Single Cells"]
["Multicell Blocks"]
["Single Cells & Multicell Blocks"]
[]
["(Select Option)"]
["Pocket"]
["Fibre"]
["Sintered/Plastic Bonded Electrode"]
["Other"]
[]
["(Select Option)"]
["Yes"]
["No"]

{"sheet":"05-Offered Cells","index":8,"n_rows":23,"n_cols":14,"rows_kept":23,"merged":[[1,0,1,13],[3,0,4,0],[3,1,4,1],[3,2,3,13],[22,0,22,8],[23,0,23,8],[24,0,24,8],[25,0,25,8],[26,0,26,8],[27,0,27,8],[28,0,28,8],[29,0,29,8]]}
["C5 Capacity @ 25°C to Veod = OEM value"]
["Complete the details of the Offered Equipment below. In column H, a reference to a Note can be added if an additional Monitoring and / or Control unit need to be added for the Battery."]
[]
["Required Capacity [Ah]","Required Capacity [kWh]","LFP Batteries"]
[null,null,"Offered Usable Capacity [Ah]","Offered Usable Energy [kWh]","Nominal Voltage [Vdc]","Cell/Module Model No.","Required No. of Modules?","Maximum No. of Modules connected in Series/Parallel [BMS Required?]","Short Circuit Current, Isc [kA]","Internal Resistance, Ri [W]","Recommended Torque Levels for Connections [N.m]","Cell Dimensions  - LxWxH [mm]","Weight [kg]","Veod [Vdc]"]
[63,3,64,"3.2","48.00","XYZ",1,"5/1 [Y] - See Example Note","1.5","0.1",15,"100x250x50",100,45.9]
[{"$f":"ROUNDUP((1000*B7)/E7,0)","v":63},3,null,null,{"v":48,"d":"48.00"}]
[{"$f":"ROUNDUP((1000*B8)/E8,0)","v":105},5,null,null,{"v":48,"d":"48.00"}]
[209,10,null,null,{"v":48,"d":"48.00"}]
[313,15,null,null,{"v":48,"d":"48.00"}]
[28,3,null,null,110]
[46,5,null,null,110]
[91,10,null,null,110]
[137,15,null,null,110]
[{"$nulls":4},"(Select Voltage)"]
[{"$nulls":4},"(Select Voltage)"]
[{"$nulls":4},"(Select Voltage)"]
[{"$nulls":4},"(Select Voltage)"]
[{"$nulls":4},"(Select Voltage)"]
[{"$nulls":4},"(Select Voltage)"]
[]
["Notes:"]
["Example indicated in red text above - maximum of 5 series connected and 1 string (parallel) connected modules. An additional Battery Management Unit is required at Rack level."]

{"sheet":"Module Sizes","index":9,"n_rows":5,"n_cols":5,"rows_kept":5,"hidden":true}
["kWh","Voltage","Ah","Voltage","Ah"]
[3,48,{"$f":"($A2*1000)/B2","v":{"v":62.5,"d":"63"}},110,{"$f":"($A2*1000)/D2","v":{"v":27.272727272727273,"d":"27"}}]
[5,48,{"$f":"($A3*1000)/B3","v":{"v":104.16666666666667,"d":"104"}},110,{"v":45.45454545454545,"d":"45"}]
[10,48,{"v":208.33333333333334,"d":"208"},110,{"v":90.9090909090909,"d":"91"}]
[15,48,{"v":312.5,"d":"313"},110,{"v":136.36363636363637,"d":"136"}]

{"sheet":"06-Temp Derating Factors","index":10,"n_rows":20,"n_cols":4,"rows_kept":20,"merged":[[4,1,4,3],[5,0,6,0],[19,1,19,3]]}
["Temperature Derating Factors"]
["Note: The discharge rate time period (e.g. 10 - 12 hrs for slow rate) shall be indicate in the space provided"]
["Also indicate the Filename and page number where the requested information may be found in the technical brochures."]
[]
[null,{"$f":"'05-Offered Cells'!C4","v":"LFP Batteries"}]
["Temperature [°C]","Slow rate","Medium rate","High rate"]
[]
[-5]
[0]
[5]
[10]
[15]
[20]
[25]
[30]
[35]
[40]
[45]
[50]
["Reference"]

{"sheet":"07-Track Record","index":11,"n_rows":74,"n_cols":3,"rows_kept":74,"merged":[[2,1,2,5],[3,1,3,5],[4,1,4,5],[5,1,5,5],[6,1,6,5],[9,2,9,5],[10,2,10,5],[12,2,12,5],[13,0,14,0],[15,0,16,0],[23,2,23,5],[25,2,25,5],[26,2,26,5],[28,2,28,5],[29,0,30,0],[31,0,32,0],[39,2,39,5],[41,2,41,5],[42,2,42,5],[44,2,44,5],[45,0,46,0],[47,0,48,0],[55,2,55,5],[57,2,57,5],[58,2,58,5],[60,2,60,5],[61,0,62,0],[63,0,64,0],[71,2,71,5],[73,2,73,5],[74,2,74,5],[75,2,75,5],[76,2,76,5],[77,2,77,5],[78,2,78,5],[79,2,79,5],[80,2,80,5],[81,2,81,5],[82,2,82,5],[83,2,83,5],[84,2,84,5],[85,2,85,5],[86,2,86,5]]}
[null,"Instruction to complete the Track Record for Offered Cells"]
[null,"Note: The track record provided shall be exclusively for the equipment offered."]
[null,"1) First list countries with similar climatic conditions as South Africa."]
[null,"2) Then list any other countries for which you have information."]
[null,"3) To make the list not too exhaustive, you may in addition to the track records provided for the four countries make mention of other countries and mention the references in the space provided."]
[null,"4) The track record provided shall be exclusively for the equipment offered."]
[null,"5) Any other relevant references that will aid in forming an idea of the track record of the company as a battery supplier can be entered under Section E Other References."]
[]
[null,"Track Record of the Equipment on Offer"]
[null,"Reference - FileName or Document Title"]
[null,"Cell Type",{"$f":"'05-Offered Cells'!C4","v":"LFP Batteries"}]
[null,"Model number"]
["A","Country 1:","SOUTH AFRICA"]
[1,"Oldest installation (Insert Customer/Site Name)"]
[null,"Date of installation"]
[2,"Most recent installation (Insert Customer/Site Name)"]
[null,"Date of installation"]
[3,"Number of units installed in a controlled environment"]
[4,"Number of units installed in an uncontrolled environment"]
[5,"Number of failures in a controlled environment"]
[6,"Number of failures in an uncontrolled environment"]
[7,"Number of units installed in electricity utility industry"]
[8,"Number of units installed in other industries"]
[9,"List your major customers in this country:"]
[]
[null,"Reference - FileName or Document Title"]
[null,"Cell Type",{"$f":"C11","v":"LFP Batteries"}]
[null,"Model number"]
["B","Country 2:"]
[1,"Oldest installation (Insert Customer/Site Name)"]
[null,"Date of installation"]
[2,"Most recent installation (Insert Customer/Site Name)"]
[null,"Date of installation"]
[3,"Number of units installed in a controlled environment"]
[4,"Number of units installed in an uncontrolled environment"]
[5,"Number of failures in a controlled environment"]
[6,"Number of failures in an uncontrolled environment"]
[7,"Number of units installed in electricity utility industry"]
[8,"Number of units installed in other industries"]
[9,"List your major customers in this country:"]
[]
[null,"Reference - FileName or Document Title"]
[null,"Cell Type",{"$f":"C27","v":"LFP Batteries"}]
[null,"Model number"]
["C","Country 3:"]
[1,"Oldest installation (Insert Customer/Site Name)"]
[null,"Date of installation"]
[2,"Most recent installation (Insert Customer/Site Name)"]
[null,"Date of installation"]
[3,"Number of units installed in a controlled environment"]
[4,"Number of units installed in an uncontrolled environment"]
[5,"Number of failures in a controlled environment"]
[6,"Number of failures in an uncontrolled environment"]
[7,"Number of units installed in electricity utility industry"]
[8,"Number of units installed in other industries"]
[9,"List your major customers in this country:"]
[]
[null,"Reference - FileName or Document Title"]
[null,"Cell Type",{"$f":"C43","v":"LFP Batteries"}]
[null,"Model number"]
["D","Country 4:"]
[1,"Oldest installation (Insert Customer/Site Name)"]
[null,"Date of installation"]
[2,"Most recent installation (Insert Customer/Site Name)"]
[null,"Date of installation"]
[3,"Number of units installed in a controlled environment"]
[4,"Number of units installed in an uncontrolled environment"]
[5,"Number of failures in a controlled environment"]
[6,"Number of failures in an uncontrolled environment"]
[7,"Number of units installed in electricity utility industry"]
[8,"Number of units installed in other industries"]
[9,"List your major customers in this country:"]
[]
["E","Other References"]

{"sheet":"08-Customer Details","index":12,"n_rows":33,"n_cols":7,"rows_kept":33,"merged":[[0,1,0,6]]}
[null,"CUSTOMER DETAILS - Contactable References"]
[]
[null,"Company Name","Contact Person","Country","Email","Telephone","Mobile"]
[1]
[2]
[3]
[4]
[5]
[6]
[7]
[8]
[9]
[10]
[11]
[12]
[13]
[14]
[15]
[16]
[17]
[18]
[19]
[20]
[21]
[22]
[23]
[24]
[25]
[26]
[27]
[28]
[29]
[30]

{"sheet":"09-Overall Deviation List","index":13,"n_rows":64,"n_cols":5,"rows_kept":64,"merged":[[0,0,0,4],[1,0,1,4],[2,0,2,4],[3,0,3,4],[4,0,4,4],[5,0,5,4],[6,0,6,4],[7,0,7,4]]}
[{"$f":"Index!A1","v":"LITHIUM IRON PHOSPHATE BATTERIES DISTRIBUTION NATIONAL CONTRACT"}]
[{"$f":"IF('[1]Worksheets Index'!C2=\"\",\"\",'[1]Worksheets Index'!C2)","v":""}]
["Click here to go back to \"Worksheets Index\""]
["DEVIATIONS LIST"]
["Any deviations from this specification shall be listed below with reasons for deviation.  In addition, evidence shall be provided that the proposed deviation will meet the minimum requirements and at least be more cost effective than that specified by Eskom."]
["The \"Clause #\" shall be the applicable Clause number from the applicable referenced document."]
["\"Clause\" refers to the applicable clause from the applicable reference document."]
["Details of the Deviation shall be provided - Document reference number, title, clause number and clause text shall be provided in cases where the deviation is applicable."]
["Item #","Document Reference #","Document Title","Clause #","Proposed Deviation"]
[1]
[2]
[3]
[4]
[5]
[6]
[7]
[8]
[9]
[10]
[11]
[12]
[13]
[14]
[15]
[16]
[17]
[18]
[19]
[20]
[21]
[22]
[23]
[24]
[25]
[26]
[27]
[28]
[29]
[30]
[31]
[32]
[33]
[34]
[35]
[36]
[37]
[38]
[39]
[40]
[41]
[42]
[43]
[44]
[45]
[46]
[47]
[48]
[49]
[50]
[51]
[52]
[53]
[54]
[55]